bitfinex-derivatives/quotes_ETHF0:USTF0_20250420
["timestamp","ask_amount","ask_price","bid_price","bid_amount"]
[1745186857308,5.50692,1582.5,1582.4,3.49196]
[1745186857699,4.243,1582.5,1582.4,3.49196]
[1745186858503,5.50692,1582.5,1582.4,3.49196]
[1745186859313,4.243,1582.5,1582.4,3.49196]
[1745186859610,5.50692,1582.5,1582.4,3.49196]
[1745186859808,1.26392,1582.5,1582.4,3.49196]
[1745186860010,5.5169,1582.6,1582.4,3.49196]
[1745186860209,1.26392,1582.5,1582.4,3.49196]
[1745186860508,1.26392,1582.5,1582.4,2.228]
[1745186861609,1.26392,1582.5,1582.4,3.492]
[1745186862309,3.2078,1582.7,1582.4,8.492]
[1745186862503,1.26392,1582.5,1582.4,3.49195]
[1745186863611,1.26392,1582.5,1582.4,3.492]
[1745186864502,5.51691,1582.6,1582.5,1.26392]
[1745186864704,1.26392,1582.5,1582.4,2.228]
[1745186865197,1.26392,1582.5,1582.4,3.492]
[1745186866015,1.26392,1582.5,1582.4,2.228]
[1745186866212,1.26392,1582.5,1582.4,3.9803]
[1745186867120,1.26392,1582.5,1582.4,5.2443]
[1745186867309,1.26392,1582.5,1582.4,3.9803]
[1745186867701,4.85772,1582.5,1582.4,3.9803]
[1745186867905,4.85772,1582.5,1582.4,2.228]
[1745186868210,1.26408,1582.3,1582.2,1.7523]
[1745186868416,1.26408,1582.3,1582.2,3.01646]
[1745186869008,1.26408,1582.3,1582.2,1.7523]
[1745186869307,1.26408,1582.3,1582.2,3.9803]
[1745186869507,3.03214,1582.4,1582.2,5.24446]
[1745186869710,3.03214,1582.4,1582.3,2.93228]
[1745186870015,3.03214,1582.4,1581.8,3.2078]
[1745186870016,1.26435,1582.0,1581.8,3.2078]
[1745186870320,5.51737,1582.0,1581.8,4.47226]
[1745186870516,1.2644,1581.9,1581.8,3.2078]
[1745186870710,1.2644,1581.9,1581.8,4.876]
[1745186870910,3.9251,1581.9,1581.8,4.876]
[1745186871111,2.6607,1581.9,1581.8,6.14048]
[1745186871409,2.6607,1581.9,1581.7,2.228]
[1745186871410,1.26448,1581.8,1581.7,2.228]
[1745186871607,2.6521,1581.8,1581.7,3.49256]
[1745186871904,4.254,1581.8,1581.7,5.13896]
[1745186872102,5.41255,1581.9,1581.7,5.13896]
[1745186872309,5.41255,1581.9,1581.8,1.6464]
[1745186872511,1.26448,1581.8,1581.7,2.228]
[1745186872717,8.4021,1581.9,1581.8,1.26448]
[1745186872718,4.1481,1581.9,1581.8,1.26448]
[1745186873017,8.4021,1581.9,1581.8,2.91088]
[1745186873216,9.6665,1581.9,1581.8,1.6464]
[1745186873417,9.6665,1581.9,1581.8,2.91088]
[1745186873615,8.4021,1581.9,1581.8,2.91088]
[1745186874208,9.6665,1581.9,1581.8,2.91088]
[1745186874407,8.4021,1581.9,1581.8,2.91088]
[1745186875919,3.2078,1581.9,1581.8,2.91088]
[1745186876124,7.4618,1581.9,1581.8,2.91088]
[1745186876829,3.2078,1582.1,1582.0,1.26426]
[1745186877124,7.4618,1582.1,1582.0,3.49226]
[1745186878122,4.47204,1582.1,1582.0,3.49226]
[1745186878424,7.4618,1582.1,1582.0,3.49226]
[1745186879922,3.2078,1582.1,1582.0,3.49226]
[1745186880128,7.4618,1582.1,1582.0,4.36516]
[1745186880529,0.8655,1582.2,1582.1,1.26424]
[1745186880728,4.1438,1582.3,1582.2,1.26416]
[1745186881030,5.1808,1582.4,1582.3,1.26408]
[1745186881520,6.4448,1582.4,1582.3,1.26408]
[1745186881723,6.4448,1582.4,1582.3,2.96298]
[1745186881922,5.1808,1582.4,1582.3,2.96298]
[1745186882118,0.9268,1582.4,1582.3,2.96298]
[1745186882322,4.254,1582.6,1582.5,1.26392]
[1745186882724,0.9268,1582.7,1582.6,1.26384]
[1745186883728,0.9268,1582.7,1582.6,2.96274]
[1745186884127,0.9268,1582.7,1582.6,3.84514]
[1745186885314,4.254,1582.9,1582.6,2.5813]
[1745186885514,6.38512,1582.9,1582.7,3.04239]
[1745186885721,1.26368,1582.8,1582.7,1.7787]
[1745186885920,0.9167,1582.8,1582.5,5.4358]
[1745186886227,1.6722,1582.7,1582.6,3.04254]
[1745186886626,2.18039,1582.8,1582.6,3.04254]
[1745186886826,2.18039,1582.8,1582.7,2.93546]
[1745186887027,3.88579,1582.8,1582.7,2.93546]
[1745186887925,2.6221,1582.8,1582.7,2.93546]
[1745186889928,0.9167,1582.8,1582.7,2.93546]
[1745186890328,2.18038,1582.8,1582.7,2.93546]
[1745186890836,3.93448,1582.8,1582.7,2.93546]
[1745186892328,3.93448,1582.8,1582.7,1.6717]
[1745186892534,3.93451,1582.8,1582.6,1.7655]
[1745186892735,3.93451,1582.8,1582.7,1.26376]
[1745186893140,3.93451,1582.8,1582.6,3.02928]
[1745186893333,1.26376,1582.7,1582.6,1.7655]
[1745186893529,2.87156,1582.7,1582.6,1.7655]
[1745186894031,1.6078,1582.7,1582.6,1.7655]
[1745186894336,2.87156,1582.7,1582.6,1.7655]
[1745186897632,2.87156,1582.7,1582.6,3.02934]
[1745186900541,1.26376,1582.7,1582.6,3.02934]
[1745186900733,7.01091,1582.8,1582.7,1.26376]
[1745186900939,7.4428,1582.8,1582.6,3.02931]
[1745186901136,1.26376,1582.7,1582.6,1.7655]
[1745186901349,1.26392,1582.5,1582.4,6.27464]
[1745186902234,2.13039,1582.6,1582.4,6.27464]
[1745186902440,2.13034,1582.6,1582.5,1.7142]
[1745186902741,2.13034,1582.6,1582.5,2.97812]
[1745186903045,2.13034,1582.6,1582.5,1.7142]
[1745186905044,1.26392,1582.5,1582.4,4.0902]
[1745186905343,3.88952,1582.5,1582.4,3.2078]
[1745186905642,1.264,1582.4,1582.3,6.15845]
[1745186906032,3.0338,1582.4,1582.3,6.15845]
[1745186906745,2.11977,1582.5,1582.4,1.264]
[1745186907041,2.13041,1582.6,1582.4,2.95054]
[1745186907238,2.13041,1582.6,1582.5,1.26392]
[1745186907434,7.4428,1582.8,1582.5,2.95047]
[1745186907635,1.2638,1582.7,1582.6,1.26382]
[1745186907838,1.2638,1582.7,1582.6,2.95042]
[1745186908238,5.9058,1582.8,1582.6,1.6866]
[1745186908443,4.136,1582.8,1582.7,2.99026]
[1745186908645,4.47153,1582.8,1582.7,2.99026]
[1745186908844,4.235,1582.9,1582.8,1.26368]
[1745186909040,5.4986,1582.9,1582.8,4.84808]
[1745186909642,5.4986,1582.9,1582.8,3.5844]
[1745186910548,1.2636,1582.9,1582.8,3.5844]
[1745186913336,3.83477,1583.0,1582.8,3.5844]
[1745186913536,7.4418,1583.2,1582.9,2.89355]
[1745186913737,1.26344,1583.1,1583.0,2.89352]
[1745186913940,1.26344,1583.1,1583.0,1.63]
[1745186914138,1.2636,1582.9,1582.8,1.8579]
[1745186914359,1.26368,1582.8,1582.7,1.7784]
[1745186914961,7.8253,1582.9,1582.7,3.04216]
[1745186915161,1.26368,1582.8,1582.7,5.27016]
[1745186915466,9.08895,1582.9,1582.8,1.7784]
[1745186916258,9.08895,1582.9,1582.8,3.04202]
[1745186916259,1.2636,1582.9,1582.8,3.04202]
[1745186917363,1.26368,1582.8,1582.7,2.228]
[1745186917558,3.90858,1582.8,1582.7,2.228]
[1745186917758,2.12968,1582.8,1582.7,2.228]
[1745186917966,2.12968,1582.8,1582.7,3.8955]
[1745186919868,1.26368,1582.8,1582.7,6.05393]
[1745186920162,1.26368,1582.8,1582.7,4.7902]
[1745186922060,1.26368,1582.8,1582.7,6.05396]
[1745186922765,1.26392,1582.5,1582.4,3.2078]
[1745186922959,1.2639,1582.6,1582.4,6.10464]
[1745186923155,1.2639,1582.6,1582.5,1.6329]
[1745186923359,3.1253,1582.6,1582.5,1.6329]
[1745186924069,1.26392,1582.5,1582.4,3.2078]
[1745186924261,1.26392,1582.5,1582.4,6.235]
[1745186924463,1.26392,1582.5,1582.4,4.971]
[1745186925064,1.26392,1582.5,1582.4,7.199]
[1745186925268,1.26392,1582.5,1582.4,8.463]
[1745186925461,1.26388,1582.6,1582.5,1.26392]
[1745186925662,1.26392,1582.5,1582.4,2.228]
[1745186926165,1.26392,1582.5,1582.4,5.2552]
[1745186926562,2.19692,1582.5,1582.4,5.2552]
[1745186932178,2.19692,1582.5,1582.4,3.9912]
[1745186933273,2.19692,1582.5,1582.4,5.2552]
[1745186934676,1.26392,1582.5,1582.4,5.2552]
[1745186934877,1.26386,1582.6,1582.5,1.26387]
[1745186935076,5.48684,1582.6,1582.5,2.99928]
[1745186935265,5.48684,1582.6,1582.5,1.7354]
[1745186936083,5.48684,1582.6,1582.5,3.9634]
[1745186939177,6.22236188,1582.7,1582.6,1.26384]
[1745186939379,6.22236188,1582.7,1582.6,3.79834]
[1745186941478,1.26372,1582.8,1582.6,3.79834]
[1745186941673,1.26372,1582.8,1582.7,1.662]
[1745186942072,1.26372,1582.8,1582.7,3.89]
[1745186942280,1.26372,1582.8,1582.7,5.15376]
[1745186942576,1.26372,1582.8,1582.7,3.89]
[1745186942772,12.59768188,1582.9,1582.8,1.26368]
[1745186942977,6.22236188,1582.9,1582.8,3.77728]
[1745186944572,7.48596188,1582.9,1582.8,3.77728]
[1745186945275,7.48596188,1582.9,1582.8,1.662]
[1745186945475,2.9409,1582.9,1582.8,1.662]
[1745186948984,1.26368,1582.8,1582.7,2.228]
[1745186949185,1.26384,1582.6,1582.5,1.6108]
[1745186949382,3.2078,1582.6,1582.3,11.51733772]
[1745186949582,1.264,1582.4,1582.3,4.72443]
[1745186950083,3.83428,1582.5,1582.3,4.72443]
[1745186950581,3.83428,1582.5,1582.3,3.11363]
[1745186951382,1.26408,1582.3,1582.2,10.63170772]
[1745186951884,3.04408,1582.3,1582.2,10.63170772]
[1745186953788,3.04408,1582.3,1582.2,2.228]
[1745186960299,3.2078,1582.3,1582.2,3.49216]
[1745186960488,8.67288,1582.3,1582.2,2.228]
[1745186961200,4.47188,1582.3,1582.2,2.228]
[1745186966398,4.47188,1582.3,1582.2,3.8707]
[1745186967803,4.47188,1582.3,1582.2,5.13486]
[1745186968002,4.47188,1582.3,1582.2,3.8707]
[1745186968690,4.47188,1582.3,1582.2,5.13486]
[1745186969095,4.47188,1582.3,1582.2,3.8707]
[1745186969296,4.47188,1582.3,1582.2,5.13486]
[1745186970206,4.47188,1582.3,1582.2,3.8707]
[1745186970618,6.12668,1582.3,1582.2,3.8707]
[1745186972609,6.12668,1582.3,1582.2,1.108]
[1745186973104,11.12668,1582.3,1582.2,1.108]
[1745186976602,6.12668,1582.3,1582.2,1.108]
[1745186976800,17.35718866,1582.3,1582.2,1.108]
[1745186977702,13.15518866,1582.3,1582.2,1.108]
[1745186977909,17.35718866,1582.3,1582.2,1.108]
[1745186981019,15.83834804,1582.3,1582.2,1.108]
[1745186981419,15.32905506,1582.3,1582.2,1.108]
[1745186983415,20.84137564,1582.3,1582.2,1e-05]
[1745186985324,20.03522886,1582.3,1582.2,1e-05]
[1745186988433,15.03522886,1582.3,1582.2,1e-05]
[1745186988634,19.13956356,1582.3,1582.2,1e-05]
[1745186989720,25.12356356,1582.3,1582.2,1e-05]
[1745186989922,3.16122,1581.8,1581.2,3.2078]
[1745186990128,1.26467,1581.6,1581.4,2.09023]
[1745186990331,1.26467,1581.6,1581.5,1.6928]
[1745186990532,5.42867,1581.6,1581.5,6.6928]
[1745186991035,5.42867,1581.6,1581.5,1.6928]
[1745186991231,5.42867,1581.6,1581.5,3.9208]
[1745186993126,5.42867,1581.6,1581.5,2.228]
[1745186993328,8.82897,1581.6,1581.5,2.228]
[1745186994236,8.82897,1581.6,1581.5,0.63246]
[1745186994829,4.66497,1581.6,1581.5,0.63246]
[1745186995028,8.82997,1581.6,1581.5,0.63246]
[1745186996124,4.66497,1581.6,1581.5,0.63246]
[1745186996333,8.82997,1581.6,1581.5,0.63246]
[1745186996943,8.82997,1581.6,1581.5,2.26326]
[1745186997132,3.2078,1581.7,1581.6,1.26464]
[1745186997440,3.2078,1581.7,1581.6,1.6308]
[1745186997441,4.165,1581.7,1581.6,1.6308]
[1745186997642,13.72812298,1581.7,1581.6,1.6308]
[1745186999039,16.93592298,1581.7,1581.6,1.6308]
[1745187000839,1.26464,1581.6,1581.5,0.63246]
[1745187001039,8.85034,1581.6,1581.5,0.63246]
[1745187004346,2.13494,1581.6,1581.5,0.63246]
[1745187004546,6.30094,1581.6,1581.5,0.63246]
[1745187005244,6.30094,1581.6,1581.5,1.49046]
[1745187005746,2.13494,1581.6,1581.5,1.49046]
[1745187005948,5.43064,1581.6,1581.5,1.49046]
[1745187006249,5.43064,1581.6,1581.5,2.34826]
[1745187006438,1.26464,1581.6,1581.5,2.34826]
[1745187006639,5.43064,1581.6,1581.5,2.34826]
[1745187010749,1.26464,1581.6,1581.5,2.34826]
[1745187011051,5.43064,1581.6,1581.5,2.34826]
[1745187012148,5.43064,1581.6,1581.5,5.25778]
[1745187012348,4.166,1581.6,1581.5,3.99306]
[1745187012547,4.166,1581.6,1581.5,5.25772]
[1745187013057,5.43064,1581.6,1581.5,3.99306]
[1745187015149,4.166,1581.6,1581.5,5.25778]
[1745187016255,4.166,1581.6,1581.5,3.99306]
[1745187016256,5.43064,1581.6,1581.5,3.99306]
[1745187016457,5.43064,1581.6,1581.5,5.25778]
[1745187016757,4.166,1581.6,1581.5,5.25778]
[1745187016951,8.66289547,1581.7,1581.6,1.26464]
[1745187017257,12.84189547,1581.7,1581.6,1.6223]
[1745187017452,8.65141,1581.7,1581.6,1.6223]
[1745187018055,8.65141,1581.7,1581.6,2.88694]
[1745187018456,8.65141,1581.7,1581.6,1.6223]
[1745187018650,8.65141,1581.7,1581.6,2.88694]
[1745187019258,8.65141,1581.7,1581.6,1.6223]
[1745187020343,4.47241,1581.7,1581.6,1.6223]
[1745187020549,4.19048547,1581.9,1581.6,7.88694]
[1745187020753,4.19048547,1581.9,1581.8,1.26448]
[1745187021056,8.36948547,1581.9,1581.8,1.26448]
[1745187021357,10.46472821,1581.9,1581.8,6.26448]
[1745187021560,10.46472821,1581.9,1581.8,4.67158]
[1745187024159,6.28572821,1581.9,1581.8,4.67158]
[1745187024361,10.46372821,1581.9,1581.8,4.67158]
[1745187025863,4.178,1581.9,1581.8,4.67158]
[1745187030366,5.4424,1581.9,1581.8,2.5687]
[1745187030563,8.8147,1581.9,1581.8,2.5687]
[1745187030867,8.8147,1581.9,1581.8,3.83318]
[1745187031067,7.5503,1581.9,1581.8,3.83318]
[1745187031667,3.2078,1582.0,1581.9,1.2644]
[1745187031964,7.3858,1582.0,1581.9,3.9173]
[1745187032164,7.3858,1582.0,1581.9,6.1453]
[1745187033166,8.65012,1582.0,1581.9,6.1453]
[1745187033369,7.3858,1582.0,1581.9,6.1453]
[1745187034171,7.3858,1582.0,1581.9,6.1603]
[1745187035671,3.2078,1582.0,1581.9,6.1603]
[1745187035872,7.3858,1582.0,1581.9,6.1603]
[1745187036571,3.2078,1582.0,1581.9,6.1603]
[1745187036771,7.3858,1582.0,1581.9,6.1603]
[1745187037570,3.2078,1582.0,1581.9,6.1603]
[1745187037770,7.3858,1582.0,1581.9,6.1603]
[1745187038266,3.2078,1582.0,1581.9,6.1603]
[1745187038573,7.3858,1582.0,1581.9,6.1603]
[1745187038975,8.65012,1582.0,1581.9,6.1603]
[1745187039273,7.3858,1582.0,1581.9,6.1603]
[1745187040074,8.65012,1582.0,1581.9,6.1603]
[1745187041180,8.65012,1582.0,1581.9,5.2694]
[1745187041369,15.30292,1582.0,1581.9,2.243]
[1745187041563,1.26472,1581.5,1581.4,1.636]
[1745187041769,8.65052,1581.5,1581.4,1.636]
[1745187042169,8.65052,1581.5,1581.4,3.864]
[1745187042780,10.35632,1581.5,1581.4,3.864]
[1745187043080,10.35632,1581.5,1581.4,2.228]
[1745187044378,10.35632,1581.5,1581.4,3.8808]
[1745187050379,10.35632,1581.5,1581.4,2.228]
[1745187051982,15.35632,1581.5,1581.4,2.228]
[1745187055076,10.35632,1581.5,1581.4,2.228]
[1745187056083,17.44860254,1581.5,1581.4,2.228]
[1745187057582,13.61935338,1581.7,1581.4,2.228]
[1745187057782,26.40705235,1582.3,1582.1,1.26424]
[1745187057783,9.18813581,1582.2,1582.1,1.26424]
[1745187057979,7.91662581,1582.2,1582.1,4.47204]
[1745187058280,7.91662581,1582.2,1582.1,3.2078]
[1745187058581,9.59632581,1582.2,1582.1,3.2078]
[1745187058778,14.00232581,1582.2,1582.1,3.2078]
[1745187059384,26.61704793,1582.2,1582.1,3.2078]
[1745187062271,27.88120793,1582.2,1582.0,2.228]
[1745187062584,1.6809,1582.1,1582.0,2.228]
[1745187062981,6.0859,1582.1,1582.0,2.228]
[1745187063179,18.70062212,1582.1,1582.0,2.228]
[1745187063983,18.70062212,1582.1,1582.0,5.4358]
[1745187064484,6.0859,1582.1,1582.0,5.4358]
[1745187064687,6.0859,1582.1,1582.0,6.70012]
[1745187065486,1.6809,1582.1,1582.0,6.70012]
[1745187065681,4.405,1582.1,1582.0,6.70012]
[1745187065987,0.0149,1582.2,1582.1,1.26424]
[1745187066187,0.0149,1582.2,1582.1,2.65444]
[1745187066378,1.7365,1582.3,1582.2,1.26416]
[1745187066573,1.7365,1582.3,1582.2,4.47196]
[1745187066778,6.1405,1582.3,1582.2,4.47196]
[1745187067284,6.1405,1582.3,1582.2,6.69996]
[1745187067478,1.7365,1582.3,1582.2,6.69996]
[1745187067672,6.1405,1582.3,1582.2,6.69996]
[1745187068079,1.7365,1582.3,1582.2,6.69996]
[1745187068281,6.1405,1582.3,1582.2,6.69996]
[1745187069480,6.1405,1582.3,1582.2,5.4358]
[1745187069679,25.01930212,1582.3,1582.2,2.228]
[1745187069880,26.67250212,1582.3,1582.2,2.228]
[1745187072390,32.65650212,1582.3,1582.2,2.228]
[1745187074687,1.26435,1582.0,1581.8,5.33134]
[1745187074991,4.404,1581.9,1581.8,5.33134]
[1745187075694,1.6623,1582.0,1581.9,1.2644]
[1745187075884,6.0663,1582.0,1581.9,1.2644]
[1745187076089,6.0663,1582.0,1581.9,3.4924]
[1745187078581,1.6623,1582.0,1581.9,3.4924]
[1745187078787,5.984,1582.3,1582.2,1.26416]
[1745187078995,10.388,1582.3,1582.2,1.26416]
[1745187079187,10.388,1582.3,1582.2,3.49216]
[1745187079493,10.388,1582.3,1582.2,4.36306]
[1745187080087,7.7438,1582.3,1582.2,4.36306]
[1745187080287,12.1478,1582.3,1582.2,4.36306]
[1745187082895,7.7438,1582.3,1582.2,4.36306]
[1745187083102,0.0149,1582.4,1582.3,1.26408]
[1745187083399,0.0149,1582.4,1582.3,5.32158]
[1745187083605,0.0149,1582.4,1582.3,6.71248]
[1745187083896,1.7655,1582.4,1582.3,6.71248]
[1745187088013,1.7655,1582.4,1582.3,5.4484]
[1745187088200,15.64422212,1582.4,1582.3,4.0575]
[1745187088604,15.64422212,1582.4,1582.3,5.32158]
[1745187088910,14.38022212,1582.4,1582.3,5.32158]
[1745187089310,1.7655,1582.4,1582.3,5.32158]
[1745187090906,1.7655,1582.4,1582.3,6.71328]
[1745187094612,1.7655,1582.4,1582.3,5.32158]
[1745187094813,15.64422212,1582.4,1582.3,3.2078]
[1745187095119,17.31902212,1582.4,1582.3,3.2078]
[1745187098917,6.1675,1582.4,1582.3,4.47188]
[1745187100009,1.7655,1582.4,1582.3,4.47188]
[1745187100209,1.7655,1582.4,1582.3,5.86248]
[1745187102920,5.0075489,1582.7,1582.6,1.26384]
[1745187103218,4.1866489,1582.7,1582.6,1.26384]
[1745187103611,4.1866489,1582.7,1582.6,2.88394]
[1745187104020,8.5886489,1582.8,1582.7,1.26376]
[1745187104219,10.3735489,1582.8,1582.7,4.47156]
[1745187104621,11.6372289,1582.8,1582.7,4.47156]
[1745187105019,10.3735489,1582.8,1582.7,4.47156]
[1745187105222,4.1866489,1582.8,1582.7,6.69956]
[1745187105414,4.1866489,1582.8,1582.7,8.09106]
[1745187108324,1.7849,1582.9,1582.8,1.26368]
[1745187108617,1.7849,1582.9,1582.8,2.65518]
[1745187113223,1.7849,1582.9,1582.8,5.86298]
[1745187117323,0.099,1583.1,1583.0,1.26352]
[1745187117520,1.7368,1583.1,1583.0,4.47132]
[1745187118316,1.26352,1583.0,1582.9,3.2078]
[1745187118512,7.23702,1583.0,1582.9,3.2078]
[1745187118725,1.26376,1582.7,1582.4,3.2078]
[1745187118921,1.6645,1582.6,1582.5,1.26384]
[1745187119223,3.4108,1582.6,1582.5,3.49184]
[1745187131531,1.7463,1582.6,1582.5,3.49184]
[1745187132030,1.7463,1582.6,1582.5,4.88314]
[1745187133430,1.7463,1582.6,1582.5,3.49184]
[1745187143039,1.7463,1582.6,1582.5,4.32574]
[1745187148327,5.50964,1582.9,1582.8,1.26368]
[1745187148633,1.7229,1582.9,1582.8,4.47148]
[1745187149141,1.7229,1582.9,1582.8,5.30398]
[1745187154840,5.0458489,1583.2,1582.8,4.0403]
[1745187155054,1.642,1583.1,1583.0,4.47132]
[1745187155259,1.642,1583.1,1583.0,6.69932]
[1745187155445,4.1866489,1583.2,1583.1,1.26344]
[1745187155645,5.8286489,1583.2,1583.1,2.65484]
[1745187156738,5.8286489,1583.2,1583.1,1.26344]
[1745187159249,1.642,1583.2,1583.1,1.26344]
[1745187162438,1.642,1583.2,1583.1,2.65434]
[1745187162845,0.099,1583.3,1583.2,1.26336]
[1745187163041,1.6512,1583.3,1583.2,5.86206]
[1745187163346,1.6512,1583.3,1583.2,8.09006]
[1745187163547,1.6512,1583.3,1583.2,6.69916]
[1745187164746,2.5387,1583.3,1583.2,6.69916]
[1745187169248,1.6512,1583.3,1583.2,6.69916]
[1745187174446,1.6512,1583.3,1583.2,7.51516]
[1745187177661,1.6512,1583.3,1583.2,4.30736]
[1745187177849,1.6512,1583.3,1583.2,7.51516]
[1745187178252,2.91448,1583.3,1583.2,6.69916]
[1745187178449,2.91448,1583.3,1583.2,5.4358]
[1745187178650,2.91448,1583.3,1583.2,2.228]
[1745187178958,7.09948,1583.3,1583.2,2.228]
[1745187179153,12.09948,1583.3,1583.2,2.228]
[1745187184658,12.09948,1583.3,1583.2,2.0729]
[1745187185164,1.2636,1582.9,1582.8,3.2078]
[1745187185966,4.8025,1582.9,1582.8,3.2078]
[1745187186763,3.5389,1582.9,1582.8,4.47148]
[1745187187859,4.8025,1582.9,1582.8,4.47148]
[1745187188265,3.5389,1582.9,1582.8,4.47148]
[1745187191270,3.5389,1582.9,1582.8,1.26368]
[1745187191570,4.8025,1582.9,1582.8,4.47148]
[1745187191770,3.5389,1582.9,1582.8,4.47148]
[1745187192856,2.6655,1582.9,1582.8,4.47148]
[1745187193470,1.7816,1582.9,1582.8,4.47148]
[1745187194070,13.3784489,1583.4,1582.8,9.47148]
[1745187194270,1.7744,1583.1,1583.0,4.47132]
[1745187195376,1.7744,1583.1,1583.0,6.69932]
[1745187197071,1.7744,1583.1,1583.0,8.09122]
[1745187204978,3.03784,1583.1,1583.0,5.4358]
[1745187205175,8.03784,1583.1,1583.0,2.228]
[1745187205777,12.22284,1583.1,1583.0,2.228]
[1745187205976,7.22284,1583.1,1583.0,2.228]
[1745187210777,5.9594,1583.1,1583.0,3.49152]
[1745187210977,7.22284,1583.1,1583.0,3.49152]
[1745187211179,7.22284,1583.1,1583.0,2.228]
[1745187211686,7.22284,1583.1,1583.0,3.49152]
[1745187211987,7.22284,1583.1,1583.0,2.228]
[1745187212489,7.22284,1583.1,1583.0,3.49152]
[1745187214085,3.03784,1583.1,1583.0,3.49152]
[1745187214483,7.20984,1583.1,1583.0,3.49152]
[1745187214984,7.20984,1583.1,1583.0,2.228]
[1745187215577,3.03784,1583.1,1583.0,2.228]
[1745187216195,7.20984,1583.1,1583.0,2.228]
[1745187217794,7.20984,1583.1,1583.0,3.49152]
[1745187219394,3.03784,1583.1,1583.0,3.49152]
[1745187219689,7.20984,1583.1,1583.0,3.49152]
[1745187219997,3.03784,1583.1,1583.0,3.49152]
[1745187220397,7.20984,1583.1,1583.0,3.49152]
[1745187220897,3.03784,1583.1,1583.0,3.49152]
[1745187221091,7.20984,1583.1,1583.0,3.49152]
[1745187221493,1.7744,1583.1,1583.0,3.49152]
[1745187221700,1.7744,1583.1,1583.0,6.69932]
[1745187222102,1.7744,1583.1,1583.0,7.52852]
[1745187229404,4.1866489,1583.4,1583.3,1.26328]
[1745187229613,5.9271489,1583.4,1583.3,1.26328]
[1745187230003,5.9271489,1583.4,1583.3,3.47898]
[1745187230809,4.1866489,1583.4,1583.3,8.47898]
[1745187231510,4.1866489,1583.4,1583.3,3.47898]
[1745187233115,4.1866489,1583.4,1583.3,8.47898]
[1745187234909,1.814,1583.5,1583.4,1.2632]
[1745187235115,1.814,1583.5,1583.4,8.9014]
[1745187237710,8.07712,1583.5,1583.4,2.228]
[1745187237910,12.24812,1583.5,1583.4,2.228]
[1745187238314,15.45592,1583.5,1583.4,2.228]
[1745187239312,1.26328,1583.3,1583.2,11.61150772]
[1745187240114,2.96848,1583.3,1583.2,13.83950772]
[1745187240713,1.7052,1583.3,1583.2,15.10286772]
[1745187241306,2.96848,1583.3,1583.2,15.10286772]
[1745187242216,2.96848,1583.3,1583.2,6.69916]
[1745187242608,1.7052,1583.3,1583.2,6.69916]
[1745187242915,2.96848,1583.3,1583.2,6.69916]
[1745187243717,2.96848,1583.3,1583.2,5.4358]
[1745187244016,2.96848,1583.3,1583.2,6.69916]
[1745187245311,1.7052,1583.3,1583.2,6.69916]
[1745187245518,2.96848,1583.3,1583.2,6.69916]
[1745187247021,2.96848,1583.3,1583.2,3.49136]
[1745187247218,2.96848,1583.3,1583.2,2.228]
[1745187248818,1.7052,1583.3,1583.2,8.49136]
[1745187249019,1.7052,1583.3,1583.2,5.19206]
[1745187249913,1.7052,1583.3,1583.2,4.34146]
[1745187250420,3.80428,1583.3,1583.2,2.228]
[1745187255618,8.80428,1583.3,1583.2,2.228]
[1745187256027,12.01208,1583.3,1583.2,2.228]
[1745187256216,13.90703,1583.3,1582.9,4.47136]
[1745187256416,1.26351,1583.1,1582.9,4.47136]
[1745187256717,2.6317,1583.0,1582.9,4.47136]
[1745187257221,3.89522,1583.0,1582.9,6.69936]
[1745187257427,2.6317,1583.0,1582.9,6.69936]
[1745187258127,3.89522,1583.0,1582.9,6.69936]
[1745187262833,2.6317,1583.0,1582.9,3.49156]
[1745187263033,1.7702,1583.0,1582.9,3.49156]
[1745187265534,3.03372,1583.0,1582.9,3.49156]
[1745187266131,3.03372,1583.0,1582.9,2.228]
[1745187267736,1.7702,1583.0,1582.9,3.4916]
[1745187269132,1.7702,1583.0,1582.9,4.8838]
[1745187275034,3.0189,1583.2,1583.1,1.26344]
[1745187275229,4.709,1583.2,1583.1,1.26344]
[1745187275434,4.709,1583.2,1583.0,6.2863]
[1745187275633,1.6901,1583.1,1583.0,7.54982]
[1745187276143,1.6901,1583.1,1583.0,9.77782]
[1745187276850,1.26334,1583.3,1583.2,1.26336]
[1745187277033,2.95574,1583.3,1583.1,2.65547]
[1745187277446,1.6924,1583.2,1583.1,2.65547]
[1745187278848,2.95576,1583.2,1583.1,2.65547]
[1745187279144,2.95576,1583.2,1583.1,1.26344]
[1745187281053,1.6924,1583.2,1583.1,1.26344]
[1745187282047,2.95576,1583.2,1583.1,1.26344]
[1745187283047,1.6924,1583.2,1583.1,1.26344]
[1745187283853,2.95576,1583.2,1583.1,1.26344]
[1745187284252,1.6924,1583.2,1583.1,1.26344]
[1745187286454,1.6924,1583.2,1583.1,2.65514]
[1745187286851,2.95576,1583.2,1583.1,1.26344]
[1745187287646,1.6924,1583.2,1583.1,1.26344]
[1745187288258,1.6924,1583.2,1583.0,8.38547]
[1745187288460,1.26344,1583.1,1583.0,8.38547]
[1745187288753,2.06954,1583.1,1583.0,8.38547]
[1745187288960,2.06954,1583.1,1583.0,7.54137]